bitfinex-derivatives/quotes_BTCF0:USTF0_20241120
["timestamp","ask_amount","ask_price","bid_price","bid_amount"]
[1732102400958,0.0329,93329.0,93327.0,0.1008]
[1732102401160,0.0329,93329.0,93328.0,0.3608]
[1732102401363,0.00072,93330.0,93328.0,0.3608]
[1732102401865,0.0016075,93335.0,93328.0,0.3608]
[1732102402176,0.0016075,93335.0,93333.0,0.1029015]
[1732102402552,0.0016075,93335.0,93334.0,0.094]
[1732102403263,0.0016075,93335.0,93334.0,1.594]
[1732102404256,0.005,93348.0,93334.0,1.594]
[1732102404456,0.0329,93351.0,93338.0,0.3608]
[1732102404667,0.0329,93351.0,93339.0,0.1008]
[1732102407169,0.0329,93351.0,93340.0,0.1029015]
[1732102407373,0.0329,93351.0,93346.0,0.3608]
[1732102407571,0.0618,93357.0,93347.0,0.1029015]
[1732102408674,0.0618,93357.0,93348.0,1.5]
[1732102409567,0.0314,93361.0,93355.0,0.1029015]
[1732102409771,0.0314,93361.0,93356.0,0.01603796]
[1732102412971,0.0314,93361.0,93348.0,1.50056]
[1732102413175,0.3608,93353.0,93349.0,0.10076]
[1732102413875,0.3608,93353.0,93350.0,0.10076]
[1732102414765,0.3608,93353.0,93351.0,0.10356]
[1732102415180,0.3608,93353.0,93352.0,0.10356]
[1732102418361,0.3608,93353.0,93346.0,0.40410093]
[1732102418566,0.7216,93353.0,93346.0,0.04330093]
[1732102418772,0.1029015,93347.0,93338.0,0.10356]
[1732102418966,0.3608,93341.0,93338.0,0.10356]
[1732102419166,0.0309,93340.0,93338.0,0.10356]
[1732102421589,0.36156,93353.0,93338.0,0.10356]
[1732102421773,0.3608,93353.0,93338.0,0.46436]
[1732102422883,0.3608,93353.0,93341.0,0.1029015]
[1732102425981,0.3608,93353.0,93338.0,0.46436]
[1732102425982,0.005,93362.0,93349.0,0.1029015]
[1732102426183,0.3608,93364.0,93349.0,0.1029015]
[1732102426379,0.3608,93364.0,93342.0,0.1029015]
[1732102426380,0.3608,93356.0,93342.0,0.1029015]
[1732102426579,0.0618,93355.0,93343.0,0.10356]
[1732102426783,0.0935,93355.0,93343.0,0.10356]
[1732102427893,0.0935,93355.0,93344.0,1.5]
[1732102428073,0.0935,93355.0,93345.0,0.10356]
[1732102428884,0.0935,93355.0,93337.0,0.04521617]
[1732102428885,0.3608,93347.0,93337.0,0.04521617]
[1732102429109,0.3608,93347.0,93338.0,0.10356]
[1732102429985,0.3608,93347.0,93337.0,0.04521617]
[1732102430190,0.3608,93347.0,93338.0,0.10356]
[1732102430191,0.13269658,93346.0,93338.0,0.10356]
[1732102430379,0.13269658,93345.0,93338.0,0.10356]
[1732102430585,0.13269658,93344.0,93338.0,0.10356]
[1732102430788,0.13269658,93343.0,93338.0,0.10356]
[1732102431084,0.13269658,93342.0,93338.0,0.10356]
[1732102431284,0.3608,93347.0,93338.0,0.10356]
[1732102431490,0.13267879,93346.0,93338.0,0.10356]
[1732102431691,0.13267879,93345.0,93338.0,0.10356]
[1732102431886,0.13267879,93344.0,93338.0,0.10356]
[1732102432190,0.3608,93347.0,93338.0,0.10356]
[1732102432381,0.3608,93347.0,93337.0,0.04521617]
[1732102436982,0.3608,93338.0,93337.0,0.04521617]
[1732102440495,0.3608,93347.0,93337.0,0.04521617]
[1732102441186,0.3608,93347.0,93337.0,0.23688296]
[1732102441386,0.3608,93347.0,93338.0,0.19166679]
[1732102441690,0.3608,93347.0,93338.0,0.1029015]
[1732102442382,0.3608,93347.0,93338.0,0.29456829]
[1732102442991,0.3608,93347.0,93339.0,0.19166679]
[1732102445287,0.3608,93347.0,93338.0,0.29456829]
[1732102445689,0.3608,93347.0,93340.0,0.19166679]
[1732102446587,0.3608,93347.0,93344.0,0.06866028]
[1732102452005,0.13232305,93346.0,93344.0,0.06866028]
[1732102452185,0.3608,93347.0,93344.0,0.06866028]
[1732102452392,0.13228402,93346.0,93344.0,0.06866028]
[1732102452594,0.3608,93347.0,93344.0,0.06866028]
[1732102452900,0.13228825,93346.0,93344.0,0.06866028]
[1732102453092,0.3608,93347.0,93344.0,0.06866028]
[1732102455201,0.3608,93347.0,93344.0,0.26032707]
[1732102455402,0.3608,93347.0,93345.0,0.19166679]
[1732102456009,0.3608,93347.0,93344.0,0.06866028]
[1732102456309,0.3608,93347.0,93344.0,0.26032707]
[1732102456507,0.3608,93347.0,93346.0,0.06866028]
[1732102457202,0.3608,93347.0,93346.0,0.19255222]
[1732102457502,0.3608,93347.0,93344.0,0.06866028]
[1732102458098,0.3608,93347.0,93346.0,0.06866028]
[1732102458292,0.3608,93347.0,93346.0,0.16906028]
[1732102459004,0.00072,93358.0,93346.0,0.16906028]
[1732102459209,0.00072,93358.0,93352.0,0.25678445]
[1732102459403,0.3989,93366.0,93346.0,0.1004]
[1732102459404,0.06866028,93361.0,93350.0,0.25678445]
[1732102459707,0.06866028,93361.0,93349.0,0.06866028]
[1732102459708,0.3608,93353.0,93349.0,0.06866028]
[1732102459919,0.0318,93352.0,93343.0,0.25678445]
[1732102460205,0.0318,93352.0,93344.0,0.25678445]
[1732102460413,0.0318,93352.0,93340.0,0.12181082]
[1732102460414,0.3608,93353.0,93351.0,0.06866028]
[1732102460706,0.3608,93353.0,93352.0,0.19253154]
[1732102461196,0.3608,93353.0,93343.0,0.19253154]
[1732102461394,0.3608,93345.0,93343.0,0.19253154]
[1732102461601,0.0305,93344.0,93342.0,0.29293154]
[1732102462002,0.0305,93344.0,93342.0,0.1004]
[1732102462201,0.0305,93344.0,93342.0,0.01582917]
[1732102462202,0.13845592,93343.0,93342.0,0.01582917]
[1732102462400,0.1384547,93343.0,93330.0,0.02141028]
[1732102462597,0.1384547,93343.0,93337.0,0.00160684]
[1732102462598,0.06866028,93338.0,93337.0,0.00160684]
[1732102463003,0.1384547,93340.0,93337.0,0.00160684]
[1732102463199,0.1384547,93339.0,93337.0,0.07026712]
[1732102463399,0.3608,93343.0,93337.0,0.07026712]
[1732102463612,0.13631808,93342.0,93337.0,0.07026712]
[1732102463907,0.3608,93343.0,93337.0,0.00160684]
[1732102465310,0.06866028,93340.0,93337.0,0.00160684]
[1732102465604,0.06866028,93340.0,93329.0,0.05403919]
[1732102465805,0.3608,93343.0,93324.0,0.19253154]
[1732102465806,0.3608,93330.0,93324.0,0.19253154]
[1732102466012,0.06866028,93326.0,93322.0,0.1004]
[1732102466210,0.06866028,93326.0,93322.0,0.05468531]
[1732102466402,0.06866028,93326.0,93320.0,0.29293154]
[1732102466597,0.42946028,93321.0,93319.0,0.19253154]
[1732102467003,0.42946028,93321.0,93319.0,0.05411928]
[1732102467200,0.42946028,93321.0,93317.0,0.19250695]
[1732102467607,0.42946028,93321.0,93308.0,0.00011649]
[1732102467608,0.06866028,93318.0,93308.0,0.19262344]
[1732102467820,0.42946028,93321.0,93308.0,0.00011649]
[1732102467821,0.13732056,93309.0,93308.0,0.00011649]
[1732102468398,0.27776646,93309.0,93308.0,0.00011649]
[1732102469516,0.20910618,93309.0,93308.0,0.00011649]
[1732102470208,0.06866028,93309.0,93308.0,0.00011649]
[1732102470606,0.0633,93310.0,93308.0,0.00011649]
[1732102475011,0.0633,93310.0,93279.0,0.3608]
[1732102475012,0.10288703,93295.0,93285.0,0.02141028]
[1732102475314,0.10288703,93295.0,93286.0,1.5]
[1732102475315,0.3608,93290.0,93286.0,1.5]
[1732102475912,8.306e-05,93289.0,93286.0,1.5]
[1732102480411,8.306e-05,93289.0,93287.0,0.0645]
[1732102481013,8.306e-05,93289.0,93285.0,0.02141028]
[1732102481521,8.306e-05,93289.0,93284.0,1.6]
[1732102481522,8.306e-05,93289.0,93284.0,0.00056]
[1732102481724,8.306e-05,93289.0,93279.0,0.05420389]
[1732102481725,0.3608,93287.0,93279.0,0.05420389]
[1732102481912,0.3608,93287.0,93268.0,1.5]
[1732102482118,0.3608,93278.0,93268.0,1.5]
[1732102482412,0.3608,93278.0,93269.0,0.02142392]
[1732102482814,0.3608,93278.0,93270.0,0.13244]
[1732102483121,0.3608,93278.0,93269.0,0.02142392]
[1732102483325,0.10288703,93276.0,93269.0,0.02142392]
[1732102483623,0.10288703,93276.0,93268.0,0.0214247]
[1732102483624,0.3608,93270.0,93268.0,0.0214247]
[1732102483824,0.3608,93270.0,93267.0,0.00160808]
[1732102484614,0.0306,93269.0,93267.0,0.00160808]
[1732102485330,0.13348703,93269.0,93267.0,0.00160808]
[1732102485821,0.0306,93269.0,93261.0,0.00013384]
[1732102488720,0.10288703,93268.0,93261.0,0.00013384]
[1732102488920,0.13588703,93268.0,93261.0,0.00013384]
[1732102489924,0.3608,93262.0,93261.0,0.00013384]
[1732102492223,0.3608,93262.0,93261.0,1.558e-05]
[1732102501919,0.36089514,93262.0,93261.0,1.558e-05]
[1732102503226,0.36089514,93262.0,93235.0,0.0214247]
[1732102503427,0.10288703,93245.0,93235.0,0.0214247]
[1732102503630,0.3608,93236.0,93235.0,0.0214247]
[1732102504631,0.3608,93236.0,93235.0,1.5214247]
[1732102505035,0.3608,93236.0,93235.0,1.5]
[1732102508235,0.3608,93236.0,93234.0,0.00160881]
[1732102509128,0.00012964,93235.0,93234.0,0.00160881]
[1732102509336,0.03192964,93235.0,93234.0,0.00160881]
[1732102509729,0.03192964,93235.0,93213.0,0.09696]
[1732102509932,0.10288703,93229.0,93213.0,0.09696]
[1732102510234,0.3608,93226.0,93213.0,0.09696]
[1732102510547,0.3608,93218.0,93214.0,0.02143473]
[1732102510942,0.3608,93218.0,93211.0,0.3608]
[1732102513164,0.3608,93218.0,93211.0,0.41501179]
[1732102513641,0.005,93230.0,93211.0,0.41501179]
[1732102513642,0.005,93230.0,93213.0,0.10288703]
[1732102513848,0.00012964,93235.0,93225.0,0.10288703]
[1732102514041,0.00012964,93235.0,93226.0,0.0963]
[1732102514740,0.00012964,93235.0,93234.0,0.10288703]
[1732102515344,0.00012964,93235.0,93234.0,1.60288703]
[1732102515840,0.00012964,93235.0,93234.0,0.10288703]
[1732102519445,0.00012964,93235.0,93226.0,0.25258426]
[1732102522135,0.00012964,93235.0,93227.0,0.097]
[1732102524656,0.00012964,93235.0,93233.0,0.02143477]
[1732102538355,0.3608,93234.0,93226.0,0.05339723]
[1732102538546,0.10288703,93230.0,93206.0,0.35711379]
[1732102538748,0.3608,93225.0,93216.0,0.02143434]
[1732102539359,0.3608,93225.0,93206.0,0.10032934]
[1732102539360,0.3608,93217.0,93206.0,0.00160934]
[1732102540047,0.10288703,93216.0,93206.0,0.00160934]
[1732102540458,0.14646019,93215.0,93206.0,0.00160934]
[1732102540653,0.14646019,93214.0,93206.0,0.00160934]
[1732102540841,0.0324,93214.0,93206.0,0.00160934]
[1732102541344,0.0326,93213.0,93206.0,0.00160934]
[1732102541741,0.0326,93213.0,93210.0,0.05415467]
[1732102541951,0.0326,93213.0,93210.0,8.818e-05]
[1732102548259,0.00013827,93212.0,93210.0,8.818e-05]
[1732102552861,0.03053827,93212.0,93210.0,8.818e-05]
[1732102556550,0.4334253,93212.0,93200.0,0.1]
[1732102556769,0.46368703,93201.0,93176.0,0.3608]
[1732102557061,0.10288703,93182.0,93176.0,0.3608]
[1732102557267,0.0308,93181.0,93176.0,0.3608]
[1732102557472,8.945e-05,93180.0,93176.0,0.3608]
[1732102561157,8.945e-05,93180.0,93177.0,0.10288703]
[1732102561355,8.945e-05,93180.0,93176.0,0.3608]
[1732102562454,8.945e-05,93180.0,93177.0,1.5]
[1732102562661,8.945e-05,93180.0,93177.0,1.60288703]
[1732102566378,8.945e-05,93180.0,93177.0,0.10288703]
[1732102568378,8.945e-05,93180.0,93178.0,0.10084]
[1732102571468,8.945e-05,93180.0,93178.0,0.12228761]
[1732102571971,8.945e-05,93180.0,93178.0,0.02144761]
[1732102572180,8.945e-05,93180.0,93176.0,0.3608]
[1732102576076,0.05431777,93180.0,93176.0,0.3608]
[1732102577772,0.05431777,93180.0,93170.0,0.0547226]
[1732102578071,0.05431777,93180.0,93158.0,0.3608]
[1732102578072,0.46368703,93175.0,93158.0,0.3608]
[1732102578380,0.3608,93167.0,93158.0,0.3608]
[1732102582581,0.3608,93167.0,93152.0,0.25678445]
[1732102582582,0.3608,93159.0,93154.0,0.05392377]
[1732102582891,0.3608,93159.0,93146.0,0.3608]
[1732102583683,0.3608,93159.0,93147.0,0.19249141]
[1732102584183,0.3608,93159.0,93148.0,0.19249141]
[1732102584385,0.3608,93159.0,93146.0,0.55329141]
[1732102584679,0.3608,93159.0,93146.0,0.3608]
[1732102586180,0.3608,93159.0,93146.0,0.4136861]
[1732102586879,0.3608,93159.0,93153.0,0.00044573]
[1732102589283,0.3608,93159.0,93146.0,0.0528861]
[1732102589479,0.10288703,93148.0,93145.0,0.00013026]
[1732102589681,0.065,93147.0,93145.0,0.00013026]
[1732102592475,0.03,93146.0,93145.0,0.00013026]
[1732102597589,0.065,93147.0,93145.0,0.00013026]
[1732102597590,0.0331,93147.0,93145.0,0.00013026]
[1732102597787,0.36152,93151.0,93145.0,0.00013026]
[1732102597989,0.3608,93151.0,93145.0,0.00013026]
[1732102598391,0.3608,93151.0,93146.0,1.5]
[1732102601497,0.3608,93151.0,93145.0,0.00013026]
[1732102601997,0.3608,93151.0,93145.0,1.50013026]
[1732102603587,0.3608,93151.0,93145.0,0.00013026]
[1732102603989,0.10288703,93148.0,93145.0,0.00013026]
[1732102605687,0.10288703,93148.0,93145.0,1.968e-05]
[1732102610502,0.0305,93150.0,93145.0,1.968e-05]
[1732102611293,0.36148,93151.0,93145.0,1.968e-05]
[1732102611509,0.3608,93151.0,93145.0,1.968e-05]
[1732102612703,0.3608,93151.0,93145.0,0.19251109]
[1732102613612,0.3608,93151.0,93146.0,0.19249141]
[1732102613904,0.3608,93151.0,93145.0,0.19251109]
[1732102614294,0.3608,93151.0,93146.0,0.19249141]
[1732102614505,0.3608,93151.0,93150.0,0.19249141]
[1732102614701,0.3608,93151.0,93150.0,0.29333141]
[1732102614919,0.3608,93167.0,93150.0,2.21842445]
[1732102615202,0.3608,93167.0,93157.0,0.10288703]
[1732102615500,0.3608,93167.0,93157.0,0.42117641]
[1732102615706,0.3608,93167.0,93166.0,0.10288703]
[1732102615902,0.3608,93167.0,93166.0,0.20372703]
[1732102616406,0.3608,93167.0,93166.0,0.26682703]
[1732102616725,0.3608,93167.0,93166.0,0.62762703]
[1732102616726,0.00012461,93167.0,93166.0,0.62762703]
[1732102617704,0.00661035,93178.0,93177.0,0.10288703]
[1732102617908,0.00161035,93178.0,93177.0,0.75702242]
[1732102618092,0.00161035,93178.0,93177.0,0.56452703]
[1732102618291,0.005,93194.0,93177.0,2.06452703]
[1732102618491,0.3658,93202.0,93186.0,0.10288703]
[1732102618692,0.00012571,93193.0,93192.0,0.10288703]
[1732102618893,0.00012571,93193.0,93192.0,0.29520597]
[1732102619102,0.00012571,93193.0,93190.0,0.10084]
[1732102619302,0.00012571,93193.0,93186.0,0.72098756]
[1732102619303,0.36092571,93193.0,93186.0,0.00064]
[1732102619496,0.36092571,93193.0,93177.0,1.65374022]
[1732102619497,0.10288703,93188.0,93177.0,1.65374022]
[1732102619691,0.3608,93185.0,93177.0,1.5]
[1732102619895,0.3608,93185.0,93175.0,0.15524012]
[1732102620100,0.3608,93185.0,93175.0,0.1008]
[1732102620301,0.3608,93185.0,93166.0,0.21375948]
[1732102620302,0.10288703,93180.0,93174.0,0.1008]
[1732102620607,0.10288703,93180.0,93172.0,0.1008]
[1732102621598,0.0304,93184.0,93172.0,0.1008]
[1732102621906,0.13338703,93187.0,93172.0,0.1008]
[1732102621907,0.0305,93187.0,93172.0,0.1008]
[1732102624308,0.0305,93187.0,93177.0,0.10288703]
[1732102624514,0.0305,93187.0,93168.0,0.41350125]
[1732102624814,0.0305,93187.0,93166.0,0.02145731]
[1732102624815,0.10288703,93185.0,93169.0,0.1066]
[1732102626421,0.3608,93186.0,93169.0,0.20948703]
[1732102626599,0.3608,93186.0,93169.0,0.26351132]
[1732102628313,0.3608,93186.0,93173.0,0.3608]
[1732102628518,0.3608,93186.0,93184.0,0.10288703]
[1732102628701,0.3608,93186.0,93173.0,0.3608]
[1732102628702,0.3608,93186.0,93183.0,0.1066]
[1732102629602,0.00012571,93193.0,93183.0,0.20948703]
[1732102629816,0.00012571,93193.0,93191.0,0.10288703]
[1732102630915,0.005,93208.0,93192.0,0.3608]
[1732102631115,0.005,93214.0,93203.0,0.3608]
[1732102631410,0.0316,93219.0,93203.0,0.3608]
[1732102631411,0.0316,93219.0,93203.0,0.46736]
[1732102631616,0.038,93220.0,93203.0,0.46736]
[1732102632005,0.0017164,93204.0,93203.0,0.46736]
[1732102632609,0.00010637,93204.0,93203.0,0.46736]
[1732102632801,0.005,93220.0,93203.0,0.46736]
[1732102633004,0.3608,93221.0,93218.0,0.10288703]
[1732102634514,0.3608,93228.0,93218.0,0.10288703]
[1732102635312,0.3608,93228.0,93218.0,0.15662165]
[1732102635614,0.3608,93228.0,93218.0,0.02294226]
[1732102635811,0.3608,93228.0,93220.0,0.3608]
[1732102636013,0.3608,93228.0,93224.0,0.10288703]
[1732102637209,0.0302,93242.0,93224.0,0.10288703]
[1732102639622,0.0302,93242.0,93220.0,0.3608]
[1732102639623,0.39402,93245.0,93238.0,0.10288703]
[1732102639815,0.3933,93245.0,93238.0,0.10288703]
[1732102641427,0.3933,93245.0,93232.0,0.11292]
[1732102642419,0.3933,93245.0,93238.0,0.10288703]
[1732102642420,0.0325,93245.0,93238.0,0.10288703]
[1732102642614,0.0333,93252.0,93238.0,0.10288703]
[1732102642919,0.0966,93261.0,93250.0,0.10288703]
[1732102645223,0.0966,93261.0,93247.0,0.11288]
[1732102645224,0.0966,93261.0,93257.0,0.10288703]
[1732102645411,0.0966,93261.0,93251.0,0.10288703]
[1732102645615,0.0966,93261.0,93247.0,0.11288]
[1732102646119,0.0966,93261.0,93247.0,0.16647179]
[1732102653724,0.3608,93250.0,93247.0,0.05359179]
[1732102653930,0.10288703,93248.0,93235.0,0.3608]
[1732102654130,0.3608,93250.0,93235.0,0.3608]
[1732102654817,0.3608,93250.0,93237.0,0.10288703]
[1732102655028,0.05533068,93259.0,93244.0,0.10288703]
[1732102655029,0.3608,93258.0,93244.0,0.10288703]
[1732102655235,0.10288703,93256.0,93238.0,0.11288]
[1732102655527,0.00669856,93255.0,93238.0,0.11288]
[1732102655720,0.00669856,93254.0,93238.0,0.11288]
[1732102655912,0.3608,93248.0,93238.0,0.11288]
[1732102657331,0.00669867,93247.0,93238.0,0.11288]
[1732102657527,0.3608,93248.0,93238.0,0.11288]
[1732102657717,0.00669871,93247.0,93238.0,0.11288]
[1732102657917,0.3608,93248.0,93238.0,0.11288]
[1732102658117,0.00669872,93247.0,93238.0,0.11288]
[1732102658318,0.00669872,93246.0,93238.0,0.11288]
[1732102658628,0.00669876,93245.0,93238.0,0.11288]
[1732102658820,0.00669876,93244.0,93238.0,0.11288]
[1732102659127,0.00669876,93243.0,93238.0,0.11288]
[1732102659631,0.00669873,93242.0,93238.0,0.11288]
[1732102659814,0.3608,93248.0,93238.0,0.11288]
[1732102660018,0.00669866,93247.0,93238.0,0.11288]
[1732102660419,0.14011642,93246.0,93238.0,0.11288]
[1732102660615,0.00669866,93245.0,93238.0,0.11288]
[1732102660834,0.00669866,93244.0,93238.0,0.11288]
[1732102661130,0.00669866,93243.0,93238.0,0.11288]
[1732102661334,0.00669866,93242.0,93238.0,0.11288]
[1732102661632,0.00669866,93241.0,93238.0,0.11288]
[1732102661831,0.00669866,93240.0,93238.0,0.11288]
[1732102662131,0.00669866,93247.0,93238.0,0.11288]
[1732102662325,0.14668461,93246.0,93238.0,0.11288]
[1732102662524,0.14668461,93245.0,93238.0,0.11288]
[1732102662734,0.14668461,93244.0,93238.0,0.11288]
[1732102662931,0.3608,93248.0,93238.0,0.11288]
[1732102662932,0.14668461,93243.0,93238.0,0.11288]
[1732102663135,0.14668461,93242.0,93238.0,0.11288]
[1732102663426,0.22354178,93250.0,93247.0,0.10288703]
[1732102663630,0.14013679,93249.0,93247.0,0.10288703]
[1732102663824,0.14013679,93248.0,93247.0,0.10288703]
[1732102664030,0.22354178,93252.0,93247.0,0.10288703]
[1732102664426,0.36367857,93251.0,93247.0,0.10288703]
[1732102664628,0.14013679,93250.0,93247.0,0.10288703]
[1732102664827,0.14013679,93249.0,93247.0,0.10288703]
[1732102665130,0.14013679,93248.0,93247.0,0.10288703]
[1732102665726,0.22354178,93253.0,93247.0,0.10288703]
[1732102665933,0.61551648,93258.0,93247.0,0.10288703]
[1732102665934,0.3608,93258.0,93247.0,0.10288703]
[1732102666232,0.0066978,93257.0,93247.0,0.10288703]
[1732102666439,0.0066978,93256.0,93247.0,0.10288703]
[1732102666628,0.0066978,93255.0,93247.0,0.10288703]
[1732102666825,0.0066978,93254.0,93247.0,0.10288703]
[1732102667029,0.3608,93258.0,93247.0,0.10288703]
[1732102667030,0.0066978,93253.0,93247.0,0.10288703]
[1732102667239,0.3608,93258.0,93247.0,0.10288703]
[1732102667543,0.00669788,93257.0,93247.0,0.10288703]
[1732102667831,0.00669788,93256.0,93247.0,0.10288703]
[1732102668055,0.00669788,93255.0,93247.0,0.10288703]
[1732102668231,0.00669813,93254.0,93247.0,0.10288703]
[1732102668433,0.00669813,93253.0,93247.0,0.10288703]
[1732102668630,0.0324,93257.0,93247.0,0.10288703]
[1732102668939,0.00669811,93256.0,93247.0,0.10288703]
[1732102669124,0.0324,93257.0,93247.0,0.10288703]
[1732102669327,0.00669812,93256.0,93247.0,0.10288703]
[1732102669927,0.00669812,93256.0,93247.0,0.15659857]
[1732102670644,0.00669812,93255.0,93248.0,1.5]
[1732102670934,0.00669812,93254.0,93248.0,1.5]
[1732102671239,0.00669812,93253.0,93248.0,1.5]
[1732102671437,0.36148,93258.0,93252.0,0.10288703]
[1732102671630,0.0066977,93257.0,93253.0,0.11596]
[1732102671937,0.36148,93258.0,93253.0,0.11596]
[1732102671938,0.0066977,93256.0,93253.0,0.11596]
[1732102672132,0.36148,93258.0,93253.0,0.11596]
[1732102672328,0.3608,93258.0,93253.0,0.11596]
[1732102676039,0.3608,93258.0,93254.0,1.5]
[1732102676336,0.3608,93258.0,93254.0,1.69230217]
[1732102676544,0.3608,93258.0,93255.0,0.19230217]
[1732102676837,0.00160944,93259.0,93256.0,0.19230217]
[1732102677233,0.00160944,93259.0,93257.0,0.0319]
[1732102679143,0.3608,93270.0,93258.0,0.19230217]
[1732102679343,0.3608,93270.0,93257.0,0.0319]
[1732102679344,0.3608,93270.0,93255.0,0.19230217]
[1732102679547,0.3608,93260.0,93247.0,0.36193371]
[1732102679730,0.0656,93259.0,93247.0,0.16963154]
[1732102680245,0.3608,93260.0,93258.0,0.10288703]
[1732102683849,0.0329,93271.0,93258.0,0.10288703]
[1732102684446,0.0329,93271.0,93266.0,0.10288703]
[1732102684647,0.0329,93271.0,93267.0,0.11592]
[1732102690140,0.03,93282.0,93267.0,0.11592]
[1732102690346,0.36148,93283.0,93277.0,0.10288703]
[1732102690949,0.36148,93283.0,93256.0,0.32082566]
[1732102690950,0.46368703,93278.0,93265.0,0.30822217]
[1732102691147,0.46368703,93278.0,93258.0,0.19230217]
[1732102691148,0.3608,93269.0,93258.0,0.19230217]
[1732102691352,0.3608,93269.0,93257.0,0.02142753]
[1732102691353,0.3608,93261.0,93257.0,0.19230217]
[1732102691855,0.3608,93261.0,93258.0,0.19230217]
[1732102692059,0.3608,93261.0,93256.0,0.17001916]
[1732102694256,0.3608,93261.0,93256.0,0.36232133]
[1732102695058,0.3608,93261.0,93259.0,0.19230217]
[1732102695255,0.3608,93261.0,93260.0,0.19230217]
[1732102695458,0.3608,93261.0,93257.0,0.25666053]
[1732102695651,0.3608,93261.0,93260.0,0.19241754]
[1732102695959,0.3608,93261.0,93260.0,1.5]
[1732102698942,0.3608,93261.0,93256.0,0.17001916]
[1732102699350,0.3608,93261.0,93257.0,1.5]
[1732102700147,0.10288703,93258.0,93248.0,0.11168]
[1732102700351,0.0318,93257.0,93248.0,0.11168]
[1732102701057,0.0318,93257.0,93247.0,0.00160844]
[1732102701271,0.3608,93249.0,93247.0,0.00160844]
[1732102701561,0.0327,93248.0,93247.0,0.00160844]
[1732102701953,0.0327,93248.0,93247.0,0.05464104]
[1732102702262,0.0327,93248.0,93247.0,0.00160844]
[1732102705150,0.3608,93249.0,93247.0,0.00160844]
[1732102707365,0.3608,93249.0,93247.0,0.05555145]
[1732102707566,0.3608,93249.0,93247.0,0.00160844]
[1732102710560,0.10288703,93248.0,93228.0,0.19241755]
[1732102710768,0.3608,93230.0,93227.0,0.00064]
[1732102710956,0.0607,93229.0,93222.0,0.05403412]
[1732102711270,0.0607,93229.0,93222.0,1.5]
[1732102713160,0.0303,93229.0,93222.0,1.5]
[1732102721782,0.3608,93230.0,93222.0,1.60288703]
[1732102723568,0.3608,93230.0,93222.0,1.5]
[1732102724765,0.3608,93230.0,93223.0,0.11172]
[1732102726572,0.3608,93230.0,93224.0,0.19241755]
[1732102726776,0.3608,93230.0,93225.0,0.19241755]
[1732102727275,0.3608,93230.0,93226.0,0.19241755]
[1732102727478,0.3608,93230.0,93227.0,0.19241755]
[1732102727660,0.0304,93235.0,93227.0,0.19241755]
[1732102727860,0.0321,93245.0,93230.0,0.10288703]
[1732102728069,0.0321,93245.0,93229.0,0.3608]
[1732102728070,0.36308924,93249.0,93241.0,0.10288703]
[1732102728269,0.36240924,93249.0,93241.0,0.10288703]
[1732102728474,0.36240924,93249.0,93242.0,1.5]
[1732102730059,0.36240924,93249.0,93243.0,0.19217655]
[1732102730261,0.36240924,93249.0,93244.0,0.19217655]
[1732102731771,0.36240924,93249.0,93241.0,1.50056]
[1732102731772,0.36240924,93249.0,93243.0,0.19217655]
[1732102732282,0.0332,93248.0,93244.0,0.19217655]
[1732102733178,0.0332,93248.0,93241.0,1.5006]
[1732102733379,0.0332,93248.0,93241.0,1.55382185]
[1732102735377,0.0332,93248.0,93241.0,0.05382185]
[1732102735585,0.0332,93248.0,93235.0,0.3608]
[1732102735883,0.0332,93248.0,93236.0,1.6066]
[1732102738469,0.0332,93248.0,93236.0,0.1066]
[1732102740076,0.0332,93248.0,93241.0,0.19217655]
[1732102741581,0.0332,93248.0,93242.0,0.19217655]
[1732102742080,0.0332,93248.0,93239.0,0.02143229]
[1732102742081,0.0332,93248.0,93240.0,0.19217655]
[1732102743780,0.0332,93248.0,93242.0,0.19217655]
[1732102744303,0.0332,93248.0,93235.0,0.41424143]
[1732102744304,0.0332,93248.0,93240.0,0.19217655]
[1732102744486,0.10288703,93243.0,93240.0,0.19217655]
[1732102744688,0.3608,93241.0,93235.0,0.00056]
[1732102744983,0.3608,93241.0,93225.0,0.1066]
[1732102744984,0.10288703,93236.0,93225.0,0.1066]
[1732102745300,0.3608,93229.0,93225.0,0.15964494]
[1732102745487,0.3608,93229.0,93225.0,0.35182149]
[1732102745784,0.3608,93229.0,93227.0,0.19217655]
[1732102745990,0.3608,93229.0,93228.0,0.1066]
[1732102746277,0.3608,93241.0,93228.0,0.1066]
[1732102746483,0.3608,93241.0,93234.0,0.1923908]
[1732102746672,0.3608,93241.0,93232.0,0.1923908]
[1732102747769,0.3608,93241.0,93233.0,0.1923908]
[1732102747970,0.3608,93241.0,93228.0,0.1066]
[1732102750778,0.3608,93241.0,93229.0,1.5]
[1732102752889,0.3608,93241.0,93225.0,0.05304494]
[1732102753093,0.3608,93233.0,93226.0,0.1066]
[1732102756470,0.10288703,93228.0,93220.0,0.2588694]
[1732102756675,0.3608,93223.0,93220.0,0.00160887]
[1732102757188,0.3608,93223.0,93222.0,0.19250136]
[1732102757692,0.3608,93223.0,93220.0,0.00160887]
[1732102757877,0.0304,93222.0,93220.0,0.00160887]
[1732102758584,0.0304,93222.0,93221.0,0.1924497]
[1732102759182,0.0304,93222.0,93220.0,0.19405857]
[1732102760084,0.3608,93223.0,93220.0,0.19405857]
[1732102760282,0.3608,93223.0,93221.0,0.1924497]
[1732102760486,0.3608,93223.0,93220.0,0.00160887]
[1732102762992,0.3608,93223.0,93220.0,0.2582694]
[1732102763193,0.3608,93223.0,93221.0,1.5]
[1732102763696,0.3608,93223.0,93222.0,0.25653139]
[1732102763992,0.3608,93223.0,93221.0,0.00056]
[1732102764194,0.3608,93233.0,93220.0,0.00160887]
[1732102764501,0.3608,93233.0,93228.0,0.19240584]
[1732102765393,0.3608,93233.0,93229.0,0.19240584]
[1732102766196,0.3608,93233.0,93230.0,0.19240584]
[1732102766701,0.3608,93233.0,93225.0,0.10556]
[1732102766702,0.3608,93233.0,93227.0,0.19240584]
[1732102766895,0.3608,93233.0,93230.0,0.19240584]
[1732102767291,0.3608,93233.0,93229.0,0.19240584]
[1732102767894,0.3608,93233.0,93230.0,0.19240584]
[1732102768401,0.3608,93233.0,93231.0,0.19240584]
[1732102768589,0.3608,93233.0,93227.0,0.19248916]